[Event "Open Nuevo Centro. Jornada 2"]
[Site "Chess.com"]
[Date "2020.06.26"]
[Round "6"]
[White "Gimeno Higueras, Roberto"]
[Black "Martínez Carvajal, Juan Francisco"]
[Result "1-0"]
[WhiteElo "1978"]
[BlackElo "1751"]
[TimeControl "180+2"]
[EndTime "11:34:46 PDT"]
[Termination "Victoria de Chicogrande2 por jaque mate"]

1. e4 {[%clk 0:03:01.9]} 1... c5 {[%clk 0:03:00.3]} 2. c3 {[%clk 0:03:03]} 2...
Nf6 {[%clk 0:02:58.2]} 3. e5 {[%clk 0:03:03.8]} 3... Nd5 {[%clk 0:02:58.8]} 4.
d4 {[%clk 0:03:05.1]} 4... cxd4 {[%clk 0:02:59.5]} 5. Nf3 {[%clk 0:03:06.6]}
5... Nc6 {[%clk 0:02:59.5]} 6. cxd4 {[%clk 0:03:07.6]} 6... d6 {[%clk
0:03:00.1]} 7. Bc4 {[%clk 0:03:08.1]} 7... Nb6 {[%clk 0:03:00.7]} 8. Bb5 {[%clk
0:03:08.3]} 8... Bd7 {[%clk 0:02:58.4]} 9. Nc3 {[%clk 0:03:08.1]} 9... e6 {[%clk
0:02:43.7]} 10. O-O {[%clk 0:03:08.4]} 10... a6 {[%clk 0:02:37.4]} 11. Bd3
{[%clk 0:03:07]} 11... Nd5 {[%clk 0:02:08.2]} 12. Re1 {[%clk 0:02:53.6]} 12...
Rc8 {[%clk 0:01:59.1]} 13. Nxd5 {[%clk 0:02:53.2]} 13... dxe5 {[%clk 0:01:50.2]}
14. Nxe5 {[%clk 0:02:42.6]} 14... Nxe5 {[%clk 0:01:45.8]} 15. Rxe5 {[%clk
0:02:43.4]} 15... Bd6 {[%clk 0:01:39.9]} 16. Re1 {[%clk 0:02:41]} 16... O-O
{[%clk 0:01:37.6]} 17. Bf4 {[%clk 0:02:39.6]} 17... Bc6 {[%clk 0:01:22.3]} 18.
Bxd6 {[%clk 0:02:37.5]} 18... Qxd6 {[%clk 0:01:21.3]} 19. Nc3 {[%clk 0:02:36.3]}
19... Rfd8 {[%clk 0:01:17.3]} 20. d5 {[%clk 0:02:26.4]} 20... Bxd5 {[%clk
0:01:13.9]} 21. Nxd5 {[%clk 0:02:26.4]} 21... Qxd5 {[%clk 0:01:14.8]} 22. Be4
{[%clk 0:02:15.2]} 22... Qb5 {[%clk 0:01:02.9]} 23. Qf3 {[%clk 0:02:11.8]} 23...
Qxb2 {[%clk 0:00:58.8]} 24. Bxb7 {[%clk 0:02:12.4]} 24... Rc2 {[%clk 0:00:58.8]}
25. Bxa6 {[%clk 0:02:06.4]} 25... g6 {[%clk 0:00:40.3]} 26. h4 {[%clk
0:02:01.9]} 26... Rdd2 {[%clk 0:00:40.4]} 27. Rf1 {[%clk 0:01:35]} 27... Rxf2
{[%clk 0:00:29.7]} 28. Rxf2 {[%clk 0:01:35.2]} 28... Qxa1+ {[%clk 0:00:15.3]}
29. Kh2 {[%clk 0:01:22.8]} 29... Qe5+ {[%clk 0:00:15.4]} 30. g3 {[%clk
0:01:21.3]} 30... Rc3 {[%clk 0:00:12.1]} 31. Qxf7+ {[%clk 0:01:20.9]} 31... Kh8
{[%clk 0:00:10.1]} 32. Qf8# {[%clk 0:01:21.9]} 1

[Event "Open Nuevo Centro. Jornada 2"]
[Site "Chess.com"]
[Date "2020.06.26"]
[Round "6"]
[White "Donate Peris, Jose Manuel"]
[Black "Alvarez Usina, Jordi"]
[Result "1-0"]
[WhiteElo "1601"]
[BlackElo "1200"]
[TimeControl "180+2"]
[EndTime "11:34:50 PDT"]
[Termination "Victoria de cheryme por tiempo"]

1. d4 {[%clk 0:03:01.9]} 1... d5 {[%clk 0:02:59.1]} 2. c4 {[%clk 0:03:00.4]}
2... Bf5 {[%clk 0:02:50.9]} 3. e3 {[%clk 0:02:55.2]} 3... e6 {[%clk 0:02:49.6]}
4. cxd5 {[%clk 0:02:52.9]} 4... Qxd5 {[%clk 0:02:47.9]} 5. Nc3 {[%clk
0:02:53.3]} 5... Qd8 {[%clk 0:02:45]} 6. Nf3 {[%clk 0:02:52.5]} 6... c6 {[%clk
0:02:44.9]} 7. Bd2 {[%clk 0:02:51.3]} 7... Nf6 {[%clk 0:02:42.2]} 8. h3 {[%clk
0:02:49.5]} 8... Nbd7 {[%clk 0:02:39.2]} 9. Rc1 {[%clk 0:02:48.5]} 9... Bd6
{[%clk 0:02:39.4]} 10. Bc4 {[%clk 0:02:42]} 10... Nb6 {[%clk 0:02:14.6]} 11. Bb3
{[%clk 0:02:41.9]} 11... Ne4 {[%clk 0:02:06.4]} 12. Nxe4 {[%clk 0:02:38.2]}
12... Bxe4 {[%clk 0:02:06.4]} 13. O-O {[%clk 0:02:37.8]} 13... O-O {[%clk
0:02:05.4]} 14. Bc3 {[%clk 0:02:31.1]} 14... Nd7 {[%clk 0:01:50]} 15. Nd2 {[%clk
0:02:31.1]} 15... Bg6 {[%clk 0:01:49.3]} 16. e4 {[%clk 0:02:29.4]} 16... Bb8
{[%clk 0:01:46.8]} 17. f4 {[%clk 0:02:24.7]} 17... Qf6 {[%clk 0:01:40]} 18. f5
{[%clk 0:02:07.8]} 18... exf5 {[%clk 0:01:05.6]} 19. exf5 {[%clk 0:02:07.5]}
19... Bxf5 {[%clk 0:00:52.9]} 20. Ne4 {[%clk 0:02:06.7]} 20... Qg6 {[%clk
0:00:41]} 21. Nc5 {[%clk 0:01:57.8]} 21... Bxh3 {[%clk 0:00:21.4]} 22. Qf3
{[%clk 0:01:57.3]} 22... Bg4 {[%clk 0:00:19.1]} 23. Qf2 {[%clk 0:01:48.8]} 23...
Nxc5 {[%clk 0:00:18.6]} 24. dxc5 {[%clk 0:01:47.9]} 24... Qh5 {[%clk 0:00:18.2]}
25. g3 {[%clk 0:01:44.4]} 25... Qh3 {[%clk 0:00:16.4]} 26. Qh2 {[%clk
0:01:31.5]} 26... Bxg3 {[%clk 0:00:11.2]} 27. Qxh3 {[%clk 0:01:30.5]} 27... Bxh3
{[%clk 0:00:11.4]} 28. Rf3 {[%clk 0:01:31.2]} 28... Bc7 {[%clk 0:00:06.7]} 29.
Rxh3 {[%clk 0:01:31.7]} 29... Rfe8 {[%clk 0:00:04]} 30. Kf2 {[%clk 0:01:27.4]}
30... Re7 {[%clk 0:00:02.8]} 31. Rch1 {[%clk 0:01:26.3]} 1

[Event "Open Nuevo Centro. Jornada 2"]
[Site "Chess.com"]
[Date "2020.06.26"]
[Round "6"]
[White "Roca Cruz, Rafael"]
[Black "Borissov, Julián"]
[Result "0-1"]
[WhiteElo "1719"]
[BlackElo "1858"]
[TimeControl "180+2"]
[EndTime "11:35:03 PDT"]
[Termination "Victoria de julianborisov por tiempo"]

1. d4 {[%clk 0:03:00]} 1... Nf6 {[%clk 0:02:59.2]} 2. c4 {[%clk 0:02:59.8]} 2...
e6 {[%clk 0:02:58.6]} 3. Nc3 {[%clk 0:03:00.8]} 3... d5 {[%clk 0:02:58.6]} 4.
Bg5 {[%clk 0:03:01.3]} 4... Be7 {[%clk 0:02:59.1]} 5. cxd5 {[%clk 0:03:02.7]}
5... exd5 {[%clk 0:02:59.3]} 6. e3 {[%clk 0:03:03.9]} 6... O-O {[%clk 0:02:57]}
7. Bd3 {[%clk 0:03:05]} 7... h6 {[%clk 0:02:56.9]} 8. Bh4 {[%clk 0:03:05.4]}
8... Be6 {[%clk 0:02:56.6]} 9. Qc2 {[%clk 0:03:05]} 9... Nbd7 {[%clk 0:02:53.3]}
10. Nge2 {[%clk 0:03:02.7]} 10... c5 {[%clk 0:02:53.7]} 11. O-O {[%clk
0:02:10.7]} 11... Rc8 {[%clk 0:02:52.2]} 12. Bf5 {[%clk 0:01:26.6]} 12... Qb6
{[%clk 0:02:43.8]} 13. Nf4 {[%clk 0:01:11.9]} 13... cxd4 {[%clk 0:02:42]} 14.
Bxe6 {[%clk 0:00:53.8]} 14... fxe6 {[%clk 0:02:33.7]} 15. Ng6 {[%clk 0:00:14.1]}
15... Rfe8 {[%clk 0:02:22.2]} 16. Nxe7+ {[%clk 0:00:14.3]} 16... Rxe7 {[%clk
0:02:22.8]} 17. exd4 {[%clk 0:00:15.4]} 17... Qxd4 {[%clk 0:02:22.1]} 18. Bg3
{[%clk 0:00:14.7]} 18... Ne4 {[%clk 0:02:17.9]} 19. Rad1 {[%clk 0:00:10.2]}
19... Qb6 {[%clk 0:02:10.7]} 20. Qb3 {[%clk 0:00:04.9]} 20... Ndc5 {[%clk
0:02:04.7]} 21. Qxb6 {[%clk 0:00:05.3]} 21... axb6 {[%clk 0:02:04.5]} 22. Nb5
{[%clk 0:00:06]} 22... Nxg3 {[%clk 0:01:59.6]} 23. hxg3 {[%clk 0:00:07.2]} 23...
Ra8 {[%clk 0:01:52.4]} 24. a3 {[%clk 0:00:07.2]} 24... Ne4 {[%clk 0:01:39.8]}
25. Rfe1 {[%clk 0:00:05.8]} 25... Ra5 {[%clk 0:01:36.3]} 26. Nd4 {[%clk
0:00:06.2]} 26... Rc5 {[%clk 0:01:34.5]} 27. Re3 {[%clk 0:00:05.2]} 27... g6
{[%clk 0:01:26.7]} 28. Kh2 {[%clk 0:00:06.1]} 28... e5 {[%clk 0:01:23.7]} 29.
Nb3 {[%clk 0:00:05.1]} 29... Nxf2 {[%clk 0:01:21.7]} 30. Nxc5 {[%clk 0:00:05.8]}
30... Nxd1 {[%clk 0:01:22.3]} 31. Rd3 {[%clk 0:00:04.4]} 31... bxc5 {[%clk
0:01:22.5]} 0

[Event "Open Nuevo Centro. Jornada 2"]
[Site "Chess.com"]
[Date "2020.06.26"]
[Round "6"]
[White "Rausell Taberner, Diego"]
[Black "Albuixech Sanz, Jorge"]
[Result "0-1"]
[WhiteElo "576"]
[BlackElo "1356"]
[TimeControl "180+2"]
[EndTime "11:35:09 PDT"]
[Termination "Victoria de Gamyi2 por jaque mate"]

1. e4 {[%clk 0:03:01.9]} 1... c5 {[%clk 0:03:00]} 2. Nf3 {[%clk 0:03:02.1]} 2...
d6 {[%clk 0:03:00.9]} 3. Bc4 {[%clk 0:03:02.9]} 3... e6 {[%clk 0:03:00.6]} 4. e5
{[%clk 0:03:00.5]} 4... dxe5 {[%clk 0:02:53.5]} 5. Nxe5 {[%clk 0:02:57.7]} 5...
Nc6 {[%clk 0:02:52.5]} 6. Nxc6 {[%clk 0:02:50.4]} 6... bxc6 {[%clk 0:02:53.2]}
7. O-O {[%clk 0:02:49.2]} 7... Nf6 {[%clk 0:02:53.5]} 8. d3 {[%clk 0:02:48.9]}
8... Be7 {[%clk 0:02:53.6]} 9. Qf3 {[%clk 0:02:35]} 9... Qc7 {[%clk 0:02:37.7]}
10. Nc3 {[%clk 0:02:28]} 10... O-O {[%clk 0:02:36.8]} 11. Qh3 {[%clk 0:02:24.9]}
11... e5 {[%clk 0:02:32.1]} 12. Qg3 {[%clk 0:02:21.2]} 12... Re8 {[%clk
0:02:16]} 13. Bh6 {[%clk 0:01:56.7]} 13... Nh5 {[%clk 0:01:55.8]} 14. Qf3 {[%clk
0:01:39.5]} 14... Nf6 {[%clk 0:01:55.3]} 15. Ne4 {[%clk 0:01:31.1]} 15... Be6
{[%clk 0:01:40.2]} 16. Nxf6+ {[%clk 0:01:26.4]} 16... Bxf6 {[%clk 0:01:39]} 17.
Qg3 {[%clk 0:01:15.6]} 17... Rad8 {[%clk 0:01:01.6]} 18. Rae1 {[%clk 0:01:14.3]}
18... Qd6 {[%clk 0:00:59]} 19. Re3 {[%clk 0:01:13.2]} 19... Bxc4 {[%clk
0:00:59.1]} 20. Rf3 {[%clk 0:01:12.6]} 20... Kh8 {[%clk 0:00:55.7]} 21. Rxf6
{[%clk 0:01:09.9]} 21... Qxf6 {[%clk 0:00:51.2]} 22. Bxg7+ {[%clk 0:01:09.7]}
22... Qxg7 {[%clk 0:00:51.8]} 23. Qxg7+ {[%clk 0:01:08.1]} 23... Kxg7 {[%clk
0:00:52.6]} 24. dxc4 {[%clk 0:01:07.5]} 24... Rd2 {[%clk 0:00:52.3]} 25. Re1
{[%clk 0:01:04.6]} 25... f6 {[%clk 0:00:50.7]} 26. h3 {[%clk 0:01:05.3]} 26...
Rxc2 {[%clk 0:00:50.4]} 27. Re4 {[%clk 0:01:05.7]} 27... Rxb2 {[%clk 0:00:50.4]}
28. Rg4+ {[%clk 0:01:05.3]} 28... Kf7 {[%clk 0:00:50.2]} 29. Kh2 {[%clk
0:01:04.6]} 29... Rg8 {[%clk 0:00:44.7]} 30. Rh4 {[%clk 0:01:04.9]} 30... Rg7
{[%clk 0:00:39.2]} 31. Re4 {[%clk 0:01:02.1]} 31... Rxa2 {[%clk 0:00:39.1]} 32.
Rh4 {[%clk 0:00:58.4]} 32... Rxf2 {[%clk 0:00:39.6]} 33. Kg1 {[%clk 0:00:53.8]}
33... Rc2 {[%clk 0:00:37.7]} 34. Kf1 {[%clk 0:00:53.4]} 34... Rgxg2 {[%clk
0:00:35.5]} 35. Ke1 {[%clk 0:00:52.1]} 35... Rg1# {[%clk 0:00:35.1]} 0

[Event "Open Nuevo Centro. Jornada 2"]
[Site "Chess.com"]
[Date "2020.06.26"]
[Round "6"]
[White "Gómez Alonso, Óscar"]
[Black "Cayon Pelaez, Pablo"]
[Result "0-1"]
[WhiteElo "1852"]
[BlackElo "1820"]
[TimeControl "180+2"]
[EndTime "11:35:11 PDT"]
[Termination "Victoria de Ataquedefinitivo por jaque mate"]

1. d4 {[%clk 0:03:00]} 1... d5 {[%clk 0:03:00.7]} 2. c4 {[%clk 0:03:00.8]} 2...
c6 {[%clk 0:03:01.8]} 3. Nc3 {[%clk 0:03:01.6]} 3... Nf6 {[%clk 0:03:02.6]} 4.
cxd5 {[%clk 0:03:02.6]} 4... cxd5 {[%clk 0:03:04.5]} 5. Nf3 {[%clk 0:03:03.1]}
5... e6 {[%clk 0:03:04.2]} 6. Bf4 {[%clk 0:03:04.1]} 6... Nc6 {[%clk 0:02:51.9]}
7. e3 {[%clk 0:03:04.8]} 7... Bd6 {[%clk 0:02:52.1]} 8. Bg5 {[%clk 0:03:05.3]}
8... a6 {[%clk 0:02:49.5]} 9. Bd3 {[%clk 0:03:05.7]} 9... h6 {[%clk 0:02:50.2]}
10. Bh4 {[%clk 0:03:06.3]} 10... O-O {[%clk 0:02:49.3]} 11. O-O {[%clk
0:03:06.8]} 11... Bd7 {[%clk 0:02:49.7]} 12. a3 {[%clk 0:03:05.9]} 12... Be7
{[%clk 0:02:39.2]} 13. e4 {[%clk 0:03:01.3]} 13... dxe4 {[%clk 0:02:32.5]} 14.
Nxe4 {[%clk 0:03:01.9]} 14... Nxe4 {[%clk 0:02:25.4]} 15. Bxe7 {[%clk
0:03:02.3]} 15... Qxe7 {[%clk 0:02:23.8]} 16. Bxe4 {[%clk 0:03:03.2]} 16... Rfd8
{[%clk 0:02:14.9]} 17. d5 {[%clk 0:03:02.8]} 17... exd5 {[%clk 0:02:09.5]} 18.
Bc2 {[%clk 0:02:41.3]} 18... Bg4 {[%clk 0:02:04.3]} 19. Qd3 {[%clk 0:02:41.1]}
19... g6 {[%clk 0:01:33.6]} 20. Rfe1 {[%clk 0:02:41.5]} 20... Qf6 {[%clk
0:01:29.6]} 21. b4 {[%clk 0:02:17.6]} 21... Bxf3 {[%clk 0:01:28.9]} 22. gxf3
{[%clk 0:02:18.6]} 22... Ne5 {[%clk 0:01:23.5]} 23. Qe3 {[%clk 0:02:08.5]} 23...
Nxf3+ {[%clk 0:01:20.2]} 24. Kh1 {[%clk 0:01:59.4]} 24... Nxe1 {[%clk
0:01:20.8]} 25. Qxe1 {[%clk 0:02:00.3]} 25... Re8 {[%clk 0:01:20.6]} 26. Qd1
{[%clk 0:02:00.5]} 26... Re5 {[%clk 0:01:09.2]} 27. Qd3 {[%clk 0:01:56.5]} 27...
Rg5 {[%clk 0:00:59]} 28. Rf1 {[%clk 0:01:52.8]} 28... Rc8 {[%clk 0:00:49.4]} 29.
f4 {[%clk 0:01:50.7]} 29... Rh5 {[%clk 0:00:44.3]} 30. Bb3 {[%clk 0:01:43.7]}
30... Rc3 {[%clk 0:00:41]} 31. Qd1 {[%clk 0:01:37.9]} 31... Rch3 {[%clk
0:00:39.5]} 32. Rf2 {[%clk 0:01:32.4]} 32... Qc6 {[%clk 0:00:21.6]} 33. Rg2
{[%clk 0:01:19.4]} 33... d4 {[%clk 0:00:20.4]} 34. Qxd4 {[%clk 0:01:02.6]} 34...
Rxh2+ {[%clk 0:00:20.5]} 35. Kg1 {[%clk 0:01:01.9]} 35... Qxg2# {[%clk
0:00:21.2]} 0

[Event "Open Nuevo Centro. Jornada 2"]
[Site "Chess.com"]
[Date "2020.06.26"]
[Round "6"]
[White "Pallardo Lozoya, Jose Vicente"]
[Black "Vega Gutiérrez, Sabrina"]
[Result "1-0"]
[WhiteElo "2318"]
[BlackElo "2035"]
[TimeControl "180+2"]
[EndTime "11:35:17 PDT"]
[Termination "Victoria de PallardoChess por tiempo"]

1. e4 {[%clk 0:03:01.9]} 1... c5 {[%clk 0:03:01]} 2. Nc3 {[%clk 0:03:02.8]} 2...
a6 {[%clk 0:03:01.6]} 3. g3 {[%clk 0:03:04.4]} 3... b5 {[%clk 0:03:02.5]} 4. Bg2
{[%clk 0:03:05.9]} 4... Bb7 {[%clk 0:03:04.1]} 5. d3 {[%clk 0:03:07.4]} 5... e6
{[%clk 0:03:04.1]} 6. f4 {[%clk 0:03:08.6]} 6... d5 {[%clk 0:02:52.5]} 7. exd5
{[%clk 0:03:09.6]} 7... Nf6 {[%clk 0:02:50.2]} 8. Nf3 {[%clk 0:03:08.5]} 8... b4
{[%clk 0:02:25.5]} 9. Ne4 {[%clk 0:02:59.3]} 9... Bxd5 {[%clk 0:02:22.5]} 10.
Qe2 {[%clk 0:02:42.7]} 10... Nc6 {[%clk 0:02:19.5]} 11. O-O {[%clk 0:02:42.1]}
11... Be7 {[%clk 0:02:07.7]} 12. c4 {[%clk 0:02:28.7]} 12... bxc3 {[%clk
0:02:07.1]} 13. bxc3 {[%clk 0:02:29]} 13... O-O {[%clk 0:01:48.5]} 14. c4 {[%clk
0:02:05.3]} 14... Bxe4 {[%clk 0:01:47.4]} 15. dxe4 {[%clk 0:02:06.6]} 15... Nd4
{[%clk 0:01:48.6]} 16. Nxd4 {[%clk 0:02:07.3]} 16... cxd4 {[%clk 0:01:31.4]} 17.
e5 {[%clk 0:01:57.4]} 17... d3 {[%clk 0:01:08.8]} 18. Qf3 {[%clk 0:01:32.6]}
18... Bc5+ {[%clk 0:00:03.4]} 19. Kh1 {[%clk 0:00:56.3]} 19... Qd4 {[%clk
0:00:04.4]} 20. exf6 {[%clk 0:00:33.7]} 20... Qxa1 {[%clk 0:00:02.7]} 21. Be3
{[%clk 0:00:34.8]} 21... Qxa2 {[%clk 0:00:02.8]} 22. Bxc5 {[%clk 0:00:32.9]}
22... Rfd8 {[%clk 0:00:02.5]} 23. Qg4 {[%clk 0:00:29.7]} 23... g6 {[%clk
0:00:02.5]} 24. Qg5 {[%clk 0:00:27.9]} 1

[Event "Open Nuevo Centro. Jornada 2"]
[Site "Chess.com"]
[Date "2020.06.26"]
[Round "6"]
[White "Macias Pino, Diego"]
[Black "Lopez Mateo, Juan Carlos"]
[Result "1-0"]
[WhiteElo "2215"]
[BlackElo "1995"]
[TimeControl "180+2"]
[EndTime "11:35:22 PDT"]
[Termination "Victoria de jesuimafe por tiempo"]

1. e4 {[%clk 0:03:01.9]} 1... c5 {[%clk 0:02:57.2]} 2. Nc3 {[%clk 0:02:57.2]}
2... e6 {[%clk 0:02:54.7]} 3. Nf3 {[%clk 0:02:57.9]} 3... a6 {[%clk 0:02:52.6]}
4. d4 {[%clk 0:02:58]} 4... cxd4 {[%clk 0:02:51.7]} 5. Nxd4 {[%clk 0:02:59.4]}
5... Qc7 {[%clk 0:02:53.3]} 6. g3 {[%clk 0:02:55.7]} 6... Nf6 {[%clk 0:02:43.9]}
7. Bg2 {[%clk 0:02:56]} 7... d6 {[%clk 0:02:40.1]} 8. O-O {[%clk 0:02:52.6]}
8... Be7 {[%clk 0:02:41.3]} 9. Be3 {[%clk 0:02:42.8]} 9... O-O {[%clk 0:02:41]}
10. f4 {[%clk 0:02:43.6]} 10... Nc6 {[%clk 0:02:37.6]} 11. Nxc6 {[%clk
0:02:28.5]} 11... bxc6 {[%clk 0:02:34.9]} 12. g4 {[%clk 0:01:58.5]} 12... d5
{[%clk 0:02:12.7]} 13. g5 {[%clk 0:01:50.1]} 13... Nd7 {[%clk 0:02:12]} 14. f5
{[%clk 0:01:43.7]} 14... Rb8 {[%clk 0:02:01.3]} 15. Qg4 {[%clk 0:01:23.2]} 15...
exf5 {[%clk 0:01:50.1]} 16. exf5 {[%clk 0:01:21.6]} 16... Rxb2 {[%clk
0:01:50.4]} 17. Bd4 {[%clk 0:01:07.8]} 17... Rb4 {[%clk 0:01:45.2]} 18. Kh1
{[%clk 0:00:40.7]} 18... Qd8 {[%clk 0:01:05.5]} 19. g6 {[%clk 0:00:34.8]} 19...
hxg6 {[%clk 0:00:47.6]} 20. fxg6 {[%clk 0:00:34.9]} 20... Ne5 {[%clk 0:00:48.8]}
21. gxf7+ {[%clk 0:00:34.7]} 21... Rxf7 {[%clk 0:00:33.9]} 22. Qd1 {[%clk
0:00:35.4]} 22... Rxf1+ {[%clk 0:00:25.6]} 23. Bxf1 {[%clk 0:00:36.5]} 23... Bd6
{[%clk 0:00:22]} 24. Qd2 {[%clk 0:00:32.9]} 24... Nf3 {[%clk 0:00:13.5]} 25. Qg2
{[%clk 0:00:25.8]} 25... Nxd4 {[%clk 0:00:04.3]} 26. Bd3 {[%clk 0:00:27]} 1

[Event "Open Nuevo Centro. Jornada 2"]
[Site "Chess.com"]
[Date "2020.06.26"]
[Round "6"]
[White "Hassomal Daswani, Birjkumar"]
[Black "Crevillen Abad, Clemente"]
[Result "1-0"]
[WhiteElo "1837"]
[BlackElo "1749"]
[TimeControl "180+2"]
[EndTime "11:35:32 PDT"]
[Termination "Victoria de daz000007 por tiempo"]

1. e4 {[%clk 0:03:00.2]} 1... c5 {[%clk 0:03:00.1]} 2. Nf3 {[%clk 0:02:59.7]}
2... Nc6 {[%clk 0:03:00.4]} 3. d4 {[%clk 0:02:59.6]} 3... cxd4 {[%clk
0:03:01.1]} 4. Nxd4 {[%clk 0:02:59.4]} 4... Nf6 {[%clk 0:03:02.4]} 5. Nc3 {[%clk
0:02:59.2]} 5... e5 {[%clk 0:03:03.1]} 6. Nxc6 {[%clk 0:02:58.2]} 6... bxc6
{[%clk 0:03:02.4]} 7. Bg5 {[%clk 0:02:58.5]} 7... Bb4 {[%clk 0:02:58]} 8. f3
{[%clk 0:02:57.8]} 8... O-O {[%clk 0:02:56.7]} 9. Bc4 {[%clk 0:02:55.5]} 9...
Bxc3+ {[%clk 0:02:46.8]} 10. bxc3 {[%clk 0:02:53.8]} 10... Qa5 {[%clk 0:02:46]}
11. Qd3 {[%clk 0:02:48.4]} 11... d5 {[%clk 0:02:36.5]} 12. Bb3 {[%clk
0:02:41.5]} 12... dxe4 {[%clk 0:02:36.3]} 13. fxe4 {[%clk 0:02:39.9]} 13... Nd7
{[%clk 0:02:25.1]} 14. O-O {[%clk 0:02:34.2]} 14... Nc5 {[%clk 0:02:18.6]} 15.
Qf3 {[%clk 0:02:29.9]} 15... Nxb3 {[%clk 0:02:17.5]} 16. axb3 {[%clk 0:02:27.9]}
16... Qc7 {[%clk 0:02:14.6]} 17. Be3 {[%clk 0:02:24.8]} 17... f6 {[%clk
0:02:10.2]} 18. h4 {[%clk 0:02:17.9]} 18... a6 {[%clk 0:01:51.8]} 19. Bc5 {[%clk
0:02:15.2]} 19... Rd8 {[%clk 0:01:47.2]} 20. h5 {[%clk 0:02:10.5]} 20... h6
{[%clk 0:01:45.4]} 21. Qg3 {[%clk 0:02:07.1]} 21... Kh8 {[%clk 0:01:28.1]} 22.
Qg6 {[%clk 0:01:52]} 22... Bb7 {[%clk 0:00:46.7]} 23. Rf3 {[%clk 0:01:40]} 23...
Rd7 {[%clk 0:00:36.3]} 24. Raf1 {[%clk 0:01:32]} 24... Rf7 {[%clk 0:00:23.7]}
25. b4 {[%clk 0:01:25.8]} 25... a5 {[%clk 0:00:21.9]} 26. Rg3 {[%clk 0:01:23.1]}
26... axb4 {[%clk 0:00:20.3]} 27. cxb4 {[%clk 0:01:22.5]} 27... Ba6 {[%clk
0:00:16.5]} 28. Rff3 {[%clk 0:01:20.6]} 28... Be2 {[%clk 0:00:14.2]} 29. Rf2
{[%clk 0:01:19.3]} 29... Ra1+ {[%clk 0:00:13.6]} 30. Kh2 {[%clk 0:01:19.7]}
30... Bc4 {[%clk 0:00:13.8]} 31. Be3 {[%clk 0:01:18.2]} 31... Ra8 {[%clk
0:00:04.5]} 32. Bxh6 {[%clk 0:01:17.9]} 32... gxh6 {[%clk 0:00:04.6]} 33. Qxh6+
{[%clk 0:01:18.1]} 33... Rh7 {[%clk 0:00:04]} 34. Qxf6+ {[%clk 0:01:18.3]} 1

[Event "Open Nuevo Centro. Jornada 2"]
[Site "Chess.com"]
[Date "2020.06.26"]
[Round "6"]
[White "Salvador Buiza, Victor"]
[Black "Kovacevic, Slobodan"]
[Result "0-1"]
[WhiteElo "1765"]
[BlackElo "2114"]
[TimeControl "180+2"]
[EndTime "11:35:39 PDT"]
[Termination "Victoria de nikko110 por jaque mate"]

1. e4 {[%clk 0:03:01.4]} 1... c5 {[%clk 0:02:24.3]} 2. Nf3 {[%clk 0:03:02.1]}
2... e6 {[%clk 0:02:23.5]} 3. c3 {[%clk 0:03:02.1]} 3... d5 {[%clk 0:02:22.1]}
4. exd5 {[%clk 0:03:02.9]} 4... exd5 {[%clk 0:02:21.6]} 5. d4 {[%clk 0:03:04.2]}
5... Nc6 {[%clk 0:02:21.5]} 6. Bb5 {[%clk 0:03:03.7]} 6... Bd6 {[%clk 0:02:17]}
7. O-O {[%clk 0:02:59.6]} 7... Ne7 {[%clk 0:02:16.1]} 8. Be3 {[%clk 0:02:51.3]}
8... c4 {[%clk 0:02:14.9]} 9. b3 {[%clk 0:02:44.9]} 9... cxb3 {[%clk 0:02:14]}
10. axb3 {[%clk 0:02:44.2]} 10... O-O {[%clk 0:02:13.1]} 11. Bd3 {[%clk
0:02:26.7]} 11... h6 {[%clk 0:02:11.2]} 12. c4 {[%clk 0:02:15.6]} 12... Be6
{[%clk 0:02:07.9]} 13. Qc2 {[%clk 0:02:08.3]} 13... a6 {[%clk 0:02:05]} 14. c5
{[%clk 0:02:04.2]} 14... Bc7 {[%clk 0:02:02.5]} 15. Qd2 {[%clk 0:01:57.3]} 15...
Bd7 {[%clk 0:01:54.3]} 16. Bxh6 {[%clk 0:01:38.7]} 16... gxh6 {[%clk 0:01:52.7]}
17. Qxh6 {[%clk 0:01:39.1]} 17... Bf5 {[%clk 0:01:45.8]} 18. Qg5+ {[%clk
0:00:55.9]} 18... Bg6 {[%clk 0:01:44.5]} 19. Nh4 {[%clk 0:00:46]} 19... Kh7
{[%clk 0:01:43.2]} 20. Qh5+ {[%clk 0:00:37.8]} 20... Kg7 {[%clk 0:01:40.1]} 21.
Qg5 {[%clk 0:00:38.6]} 21... Rh8 {[%clk 0:01:21.9]} 22. f4 {[%clk 0:00:33]}
22... Ng8 {[%clk 0:01:07.8]} 23. Nf5+ {[%clk 0:00:27.2]} 23... Kf8 {[%clk
0:01:06.4]} 24. Qg3 {[%clk 0:00:21]} 24... Qf6 {[%clk 0:01:02.6]} 25. Ne3 {[%clk
0:00:18.3]} 25... Bxd3 {[%clk 0:00:58.4]} 26. Nxd5 {[%clk 0:00:19.1]} 26...
Qxd4+ {[%clk 0:00:55.7]} 27. Kh1 {[%clk 0:00:15.7]} 27... Qxd5 {[%clk 0:00:49]}
28. Rd1 {[%clk 0:00:11.6]} 28... Rd8 {[%clk 0:00:46.5]} 29. Nc3 {[%clk
0:00:11.1]} 29... Qd4 {[%clk 0:00:42.3]} 30. Ne2 {[%clk 0:00:09.6]} 30... Qe4
{[%clk 0:00:39.4]} 31. Nc3 {[%clk 0:00:08.3]} 31... Qxf4 {[%clk 0:00:35.3]} 32.
Qe1 {[%clk 0:00:08.6]} 32... Qxh2# {[%clk 0:00:32.8]} 0